[Event "Titled Tuesday Blitz August 09 Early 2022"]
[White "Grot, Blazej"]
[Black "Jaskolka, Tomasz"]
[WhiteFideId "21835845"]
[BlackFideId "1170791"]
[WhiteElo "1614"]
[BlackElo "2073"]
[Result "1/2-1/2"]
[Round "04"]
[TimeControl "180+1"]
[Date "2022.08.09"]
[WhiteClock "0:00:20"]
[BlackClock "0:00:10"]

1. e4 {[%clk 0:03:00]}  c5 {[%clk 0:02:59]} 2. Nf3 {[%clk 0:02:56]}  e6 {[%clk 0:03:00]} 3. d4 {[%clk 0:02:53]}  cxd4 {[%clk 0:03:00]} 4. Nxd4 {[%clk 0:02:53]}  Nc6 {[%clk 0:03:00]} 5. Nc3 {[%clk 0:02:53]}  Qc7 {[%clk 0:03:00]} 6. Be2 {[%clk 0:02:52]}  Nf6 {[%clk 0:03:00]} 7. O-O {[%clk 0:02:51]}  a6 {[%clk 0:03:00]} 8. Be3 {[%clk 0:02:51]}  Be7 {[%clk 0:02:51]} 9. f4 {[%clk 0:02:50]}  d6 {[%clk 0:02:51]} 10. Kh1 {[%clk 0:02:48]}  O-O {[%clk 0:02:49]} 11. a4 {[%clk 0:02:48]}  Nxd4 {[%clk 0:02:48]} 12. Bxd4 {[%clk 0:02:47]}  Re8 {[%clk 0:02:30]} 13. a5 {[%clk 0:02:45]}  Bd7 {[%clk 0:02:27]} 14. Bf3 {[%clk 0:02:44]}  Rac8 {[%clk 0:02:25]} 15. Qe1 {[%clk 0:02:44]}  e5 {[%clk 0:02:24]} 16. Bb6 {[%clk 0:02:22]}  Qb8 {[%clk 0:02:24]} 17. f5 {[%clk 0:02:21]}  d5 {[%clk 0:02:05]} 18. Nxd5 {[%clk 0:02:04]}  Nxd5 {[%clk 0:02:04]} 19. exd5 {[%clk 0:02:03]}  Bxf5 {[%clk 0:02:03]} 20. Be4 {[%clk 0:01:58]}  Bxe4 {[%clk 0:01:58]} 21. Qxe4 {[%clk 0:01:58]}  Bd6 {[%clk 0:01:58]} 22. c4 {[%clk 0:01:56]}  g6 {[%clk 0:01:50]} 23. g4 {[%clk 0:01:50]}  Bf8 {[%clk 0:01:39]} 24. Rf3 {[%clk 0:01:42]}  Bg7 {[%clk 0:01:38]} 25. b4 {[%clk 0:01:39]}  Qd6 {[%clk 0:01:36]} 26. c5 {[%clk 0:01:35]}  Qd7 {[%clk 0:01:35]} 27. Raf1 {[%clk 0:01:32]}  f6 {[%clk 0:01:32]} 28. h3 {[%clk 0:01:30]}  Re7 {[%clk 0:01:23]} 29. d6 {[%clk 0:01:23]}  Rf7 {[%clk 0:01:23]} 30. Qd5 {[%clk 0:01:23]}  Qc6 {[%clk 0:01:20]} 31. Qxc6 {[%clk 0:01:21]}  bxc6 {[%clk 0:01:18]} 32. Rd3 {[%clk 0:01:21]}  Rd7 {[%clk 0:01:18]} 33. Kg2 {[%clk 0:01:19]}  Kf7 {[%clk 0:01:18]} 34. Kf3 {[%clk 0:01:17]}  Ke6 {[%clk 0:01:14]} 35. Ke4 {[%clk 0:01:17]}  Rf8 {[%clk 0:01:13]} 36. Rdf3 {[%clk 0:01:16]}  Rdf7 {[%clk 0:01:11]} 37. Ke3 {[%clk 0:01:06]}  f5 {[%clk 0:01:09]} 38. Rd1 {[%clk 0:01:02]}  e4 {[%clk 0:01:05]} 39. Rff1 {[%clk 0:00:59]}  Bh6+ {[%clk 0:01:04]} 40. Ke2 {[%clk 0:00:58]}  f4 {[%clk 0:01:01]} 41. h4 {[%clk 0:00:57]}  f3+ {[%clk 0:01:01]} 42. Ke1 {[%clk 0:00:54]}  Bg7 {[%clk 0:00:39]} 43. Kf2 {[%clk 0:00:49]}  Kd7 {[%clk 0:00:26]} 44. Ke3 {[%clk 0:00:48]}  Rf4 {[%clk 0:00:23]} 45. Rc1 {[%clk 0:00:41]}  f2 {[%clk 0:00:20]} 46. Rc4 {[%clk 0:00:40]}  Rf3+ {[%clk 0:00:19]} 47. Ke2 {[%clk 0:00:36]}  R8f4 {[%clk 0:00:17]} 48. Rxe4 {[%clk 0:00:35]}  Rxe4+ {[%clk 0:00:16]} 49. Kxf3 {[%clk 0:00:35]}  Rxb4 {[%clk 0:00:16]} 50. Rxf2 {[%clk 0:00:32]}  h5 {[%clk 0:00:10]} 51. gxh5 {[%clk 0:00:29]}  gxh5 {[%clk 0:00:11]} 52. Re2 {[%clk 0:00:29]}  Bf6 {[%clk 0:00:11]} 53. Kg2 {[%clk 0:00:28]}  Rg4+ {[%clk 0:00:11]} 54. Kf1 {[%clk 0:00:25]}  Rf4+ {[%clk 0:00:11]} 55. Rf2 {[%clk 0:00:24]}  Rxf2+ {[%clk 0:00:11]} 56. Kxf2 {[%clk 0:00:25]}  Bxh4+ {[%clk 0:00:12]} 57. Kf3 {[%clk 0:00:25]}  Bg5 {[%clk 0:00:12]} 58. Kg3 {[%clk 0:00:25]}  Ke6 {[%clk 0:00:12]} 59. Kh3 {[%clk 0:00:24]}  h4 {[%clk 0:00:10]} 60. Kg4 {[%clk 0:00:23]}  Bf6 {[%clk 0:00:09]} 61. Kh3 {[%clk 0:00:21]}  Bg5 {[%clk 0:00:10]} 62. Kg4 {[%clk 0:00:20]}  Bf6 {[%clk 0:00:10]} 63. Kh3 {[%clk 0:00:20]}  Kd7 {[%clk 0:00:11]} 64. Kg4 {[%clk 0:00:20]}  Kc8 {[%clk 0:00:09]} 65. Kh3 {[%clk 0:00:20]}  Kd7 {[%clk 0:00:10]} 66. Kg4 {[%clk 0:00:20]}  Ke6 {[%clk 0:00:10]} 1/2-1/2


[Site "https://www.chess.com"]

[Event "Titled Tuesday Blitz August 09 Early 2022"]
[White "Horcajuelo Rocamora, Martin"]
[Black "Reprintsev, Alexander"]
[WhiteFideId "24573027"]
[BlackFideId "14100541"]
[WhiteElo "1882"]
[BlackElo "2108"]
[Result "0-1"]
[Round "04"]
[TimeControl "180+1"]
[Date "2022.08.09"]
[WhiteClock "0:02:27"]
[BlackClock "0:02:24"]

1. e4 {[%clk 0:02:52]}  d5 {[%clk 0:02:57]} 2. exd5 {[%clk 0:02:49]}  Qxd5 {[%clk 0:02:58]} 3. Nc3 {[%clk 0:02:44]}  Qa5 {[%clk 0:02:57]} 4. d4 {[%clk 0:02:44]}  Nf6 {[%clk 0:02:57]} 5. Bc4 {[%clk 0:02:44]}  Nc6 {[%clk 0:02:55]} 6. Nf3 {[%clk 0:02:44]}  Bg4 {[%clk 0:02:53]} 7. Be3 {[%clk 0:02:41]}  O-O-O {[%clk 0:02:52]} 8. Bxf7 {[%clk 0:02:37]}  e5 {[%clk 0:02:52]} 9. d5 {[%clk 0:02:36]}  e4 {[%clk 0:02:51]} 10. h3 {[%clk 0:02:36]}  exf3 {[%clk 0:02:50]} 11. hxg4 {[%clk 0:02:36]}  fxg2 {[%clk 0:02:50]} 12. Rg1 {[%clk 0:02:36]}  Bb4 {[%clk 0:02:37]} 13. g5 {[%clk 0:02:32]}  Bxc3+ {[%clk 0:02:35]} 14. bxc3 {[%clk 0:02:31]}  Nxd5 {[%clk 0:02:35]} 15. Qg4+ {[%clk 0:02:30]}  Kb8 {[%clk 0:02:34]} 16. Bd2 {[%clk 0:02:30]}  Ne5 {[%clk 0:02:32]} 17. Qf5 {[%clk 0:02:26]}  Nxf7 {[%clk 0:02:28]} 18. Qxf7 {[%clk 0:02:27]}  Rhe8+ {[%clk 0:02:24]} 0-1


[Site "https://www.chess.com"]

[Event "Titled Tuesday Blitz August 09 Early 2022"]
[White "Hosseinzadeh, Nima"]
[Black "Gubanov, Oleg"]
[WhiteFideId "12505323"]
[BlackFideId "14115115"]
[WhiteElo "2045"]
[BlackElo "2080"]
[Result "1-0"]
[Round "04"]
[TimeControl "180+1"]
[Date "2022.08.09"]
[WhiteClock "0:00:06"]
[BlackClock "0:00:03"]

1. e4 {[%clk 0:03:00]}  Nf6 {[%clk 0:02:59]} 2. e5 {[%clk 0:03:01]}  Nd5 {[%clk 0:02:59]} 3. d4 {[%clk 0:03:01]}  d6 {[%clk 0:02:59]} 4. Nf3 {[%clk 0:03:02]}  dxe5 {[%clk 0:03:00]} 5. Nxe5 {[%clk 0:03:03]}  c6 {[%clk 0:03:00]} 6. Be2 {[%clk 0:03:02]}  Bf5 {[%clk 0:03:00]} 7. O-O {[%clk 0:02:59]}  Nd7 {[%clk 0:03:00]} 8. Nf3 {[%clk 0:02:57]}  e6 {[%clk 0:03:01]} 9. c4 {[%clk 0:02:57]}  N5f6 {[%clk 0:03:01]} 10. Nc3 {[%clk 0:02:57]}  Ne4 {[%clk 0:03:01]} 11. Be3 {[%clk 0:02:55]}  Nxc3 {[%clk 0:03:00]} 12. bxc3 {[%clk 0:02:55]}  Qc7 {[%clk 0:02:35]} 13. d5 {[%clk 0:02:54]}  cxd5 {[%clk 0:02:35]} 14. cxd5 {[%clk 0:02:55]}  Bd6 {[%clk 0:02:32]} 15. Nd4 {[%clk 0:02:43]}  Bxh2+ {[%clk 0:02:12]} 16. Kh1 {[%clk 0:02:43]}  Be5 {[%clk 0:02:11]} 17. Nxf5 {[%clk 0:01:59]}  exf5 {[%clk 0:02:10]} 18. Rc1 {[%clk 0:01:54]}  f4 {[%clk 0:01:44]} 19. Bd4 {[%clk 0:01:50]}  O-O {[%clk 0:01:38]} 20. c4 {[%clk 0:01:43]}  Rfe8 {[%clk 0:01:29]} 21. Bg4 {[%clk 0:01:33]}  Nc5 {[%clk 0:01:11]} 22. Re1 {[%clk 0:01:28]}  Qd6 {[%clk 0:01:01]} 23. Qd2 {[%clk 0:00:51]}  g6 {[%clk 0:00:53]} 24. Qb2 {[%clk 0:00:36]}  Bxd4 {[%clk 0:00:46]} 25. Qxd4 {[%clk 0:00:37]}  b6 {[%clk 0:00:45]} 26. Bf3 {[%clk 0:00:34]}  Rad8 {[%clk 0:00:35]} 27. Kg1 {[%clk 0:00:34]}  Re7 {[%clk 0:00:31]} 28. Rxe7 {[%clk 0:00:28]}  Qxe7 {[%clk 0:00:31]} 29. Rc2 {[%clk 0:00:23]}  Qe1+ {[%clk 0:00:29]} 30. Kh2 {[%clk 0:00:23]}  Re8 {[%clk 0:00:25]} 31. Qxf4 {[%clk 0:00:21]}  Nd3 {[%clk 0:00:20]} 32. Qd4 {[%clk 0:00:20]}  Ne5 {[%clk 0:00:17]} 33. d6 {[%clk 0:00:13]}  Nxf3+ {[%clk 0:00:16]} 34. gxf3 {[%clk 0:00:13]}  Qe6 {[%clk 0:00:16]} 35. Kg2 {[%clk 0:00:10]}  Qd7 {[%clk 0:00:14]} 36. Rd2 {[%clk 0:00:10]}  Re6 {[%clk 0:00:14]} 37. Qd5 {[%clk 0:00:10]}  Kg7 {[%clk 0:00:14]} 38. Qd4+ {[%clk 0:00:10]}  Kg8 {[%clk 0:00:14]} 39. Qd5 {[%clk 0:00:10]}  Kg7 {[%clk 0:00:14]} 40. Kf1 {[%clk 0:00:09]}  Rf6 {[%clk 0:00:14]} 41. Kg2 {[%clk 0:00:09]}  h5 {[%clk 0:00:13]} 42. Qe5 {[%clk 0:00:09]}  h4 {[%clk 0:00:12]} 43. Rd4 {[%clk 0:00:08]}  h3+ {[%clk 0:00:07]} 44. Kh2 {[%clk 0:00:08]}  Qd8 {[%clk 0:00:04]} 45. Rf4 {[%clk 0:00:08]}  g5 {[%clk 0:00:04]} 46. Rf5 {[%clk 0:00:07]}  Kg6 {[%clk 0:00:03]} 47. Rxg5+ {[%clk 0:00:08]}  Kh7 {[%clk 0:00:04]} 48. Rh5+ {[%clk 0:00:07]}  Rh6 {[%clk 0:00:05]} 49. Rxh6+ {[%clk 0:00:06]}  Kxh6 {[%clk 0:00:06]} 50. Qe7 {[%clk 0:00:06]}  Qb8 {[%clk 0:00:06]} 51. Kxh3 {[%clk 0:00:06]}  Qc8+ {[%clk 0:00:04]} 52. d7 {[%clk 0:00:06]}  Qxc4 {[%clk 0:00:03]} 53. d8=Q {[%clk 0:00:06]}  Qf1+ {[%clk 0:00:02]} 54. Kg3 {[%clk 0:00:05]}  Qg1+ {[%clk 0:00:03]} 55. Kf4 {[%clk 0:00:06]}  Qh2+ {[%clk 0:00:03]} 56. Ke3 {[%clk 0:00:06]} 1-0


[Site "https://www.chess.com"]

[Event "Titled Tuesday Blitz August 09 Early 2022"]
[White "Ibarra Jerez, Jose Carlos"]
[Black "Yedidia, Daniel"]
[WhiteFideId "2226332"]
[BlackFideId "30905907"]
[WhiteElo "2628"]
[BlackElo "2539"]
[Result "1-0"]
[Round "04"]
[TimeControl "180+1"]
[Date "2022.08.09"]
[WhiteClock "0:00:21"]
[BlackClock "0:00:29"]

1. e4 {[%clk 0:03:00]}  e5 {[%clk 0:02:58]} 2. Nf3 {[%clk 0:03:01]}  Nc6 {[%clk 0:02:58]} 3. Bb5 {[%clk 0:03:00]}  a6 {[%clk 0:02:58]} 4. Bxc6 {[%clk 0:03:01]}  dxc6 {[%clk 0:02:59]} 5. O-O {[%clk 0:03:01]}  Bd6 {[%clk 0:02:59]} 6. d4 {[%clk 0:03:01]}  exd4 {[%clk 0:03:00]} 7. Qxd4 {[%clk 0:03:01]}  f6 {[%clk 0:03:01]} 8. Be3 {[%clk 0:03:00]}  Ne7 {[%clk 0:03:01]} 9. Nbd2 {[%clk 0:03:00]}  Be6 {[%clk 0:02:59]} 10. Qc3 {[%clk 0:02:58]}  Ng6 {[%clk 0:02:51]} 11. Nd4 {[%clk 0:02:56]}  Qe7 {[%clk 0:02:46]} 12. a3 {[%clk 0:02:54]}  O-O {[%clk 0:02:30]} 13. f4 {[%clk 0:02:52]}  Bd7 {[%clk 0:02:21]} 14. Rae1 {[%clk 0:02:45]}  Rae8 {[%clk 0:02:19]} 15. g3 {[%clk 0:02:43]}  Qd8 {[%clk 0:02:16]} 16. Qb3+ {[%clk 0:02:30]}  Kh8 {[%clk 0:02:13]} 17. Qxb7 {[%clk 0:02:31]}  Qb8 {[%clk 0:02:05]} 18. Qxb8 {[%clk 0:02:25]}  Rxb8 {[%clk 0:02:06]} 19. Nc4 {[%clk 0:02:04]}  c5 {[%clk 0:02:07]} 20. Nb3 {[%clk 0:02:04]}  Bb5 {[%clk 0:02:00]} 21. Nba5 {[%clk 0:01:59]}  Rfe8 {[%clk 0:01:53]} 22. Bd2 {[%clk 0:01:56]}  h6 {[%clk 0:01:40]} 23. b3 {[%clk 0:01:53]}  Bd7 {[%clk 0:01:38]} 24. Nxd6 {[%clk 0:01:45]}  cxd6 {[%clk 0:01:39]} 25. Nc4 {[%clk 0:01:39]}  Be6 {[%clk 0:01:36]} 26. Nxd6 {[%clk 0:01:11]}  Red8 {[%clk 0:01:31]} 27. e5 {[%clk 0:01:11]}  Bh3 {[%clk 0:01:18]} 28. Nf7+ {[%clk 0:01:03]}  Kg8 {[%clk 0:01:14]} 29. Nxd8 {[%clk 0:01:03]}  Bxf1 {[%clk 0:01:14]} 30. Nc6 {[%clk 0:00:58]}  Rb6 {[%clk 0:01:11]} 31. Kxf1 {[%clk 0:00:53]}  Rxc6 {[%clk 0:01:10]} 32. exf6 {[%clk 0:00:51]}  gxf6 {[%clk 0:01:06]} 33. Re4 {[%clk 0:00:40]}  Kf7 {[%clk 0:01:05]} 34. Be3 {[%clk 0:00:38]}  Nf8 {[%clk 0:01:02]} 35. f5 {[%clk 0:00:37]}  h5 {[%clk 0:00:49]} 36. Rh4 {[%clk 0:00:36]}  Nd7 {[%clk 0:00:46]} 37. Rxh5 {[%clk 0:00:35]}  Ne5 {[%clk 0:00:46]} 38. Rh7+ {[%clk 0:00:34]}  Kg8 {[%clk 0:00:45]} 39. Re7 {[%clk 0:00:32]}  Ng4 {[%clk 0:00:39]} 40. Bg1 {[%clk 0:00:28]}  Nh6 {[%clk 0:00:37]} 41. Re6 {[%clk 0:00:26]}  Rxe6 {[%clk 0:00:32]} 42. fxe6 {[%clk 0:00:26]}  Ng4 {[%clk 0:00:33]} 43. h3 {[%clk 0:00:24]}  Nh6 {[%clk 0:00:30]} 44. Bxc5 {[%clk 0:00:24]}  Nf5 {[%clk 0:00:29]} 45. g4 {[%clk 0:00:25]}  Ng3+ {[%clk 0:00:30]} 46. Kg2 {[%clk 0:00:23]}  Ne4 {[%clk 0:00:31]} 47. Bb4 {[%clk 0:00:23]}  Ng5 {[%clk 0:00:30]} 48. e7 {[%clk 0:00:22]}  Kf7 {[%clk 0:00:30]} 49. h4 {[%clk 0:00:22]}  Ne6 {[%clk 0:00:30]} 50. c3 {[%clk 0:00:20]}  a5 {[%clk 0:00:27]} 51. Bxa5 {[%clk 0:00:20]}  Kxe7 {[%clk 0:00:28]} 52. Bb4+ {[%clk 0:00:20]}  Kd7 {[%clk 0:00:28]} 53. Kf3 {[%clk 0:00:21]}  Kc6 {[%clk 0:00:28]} 54. Ke4 {[%clk 0:00:21]}  Kd7 {[%clk 0:00:29]} 55. Kf5 {[%clk 0:00:21]} 1-0


[Site "https://www.chess.com"]

[Event "Titled Tuesday Blitz August 09 Early 2022"]
[White "Jiganchine, Roman"]
[Black "Butti, Enrique"]
[WhiteFideId "2603667"]
[BlackFideId "3700470"]
[WhiteElo "2295"]
[BlackElo "2080"]
[Result "1-0"]
[Round "04"]
[TimeControl "180+1"]
[Date "2022.08.09"]
[WhiteClock "0:00:51"]
[BlackClock "0:01:15"]

1. Nf3 {[%clk 0:03:00]}  d5 {[%clk 0:02:58]} 2. e3 {[%clk 0:02:59]}  c5 {[%clk 0:02:55]} 3. d4 {[%clk 0:02:55]}  Nc6 {[%clk 0:02:54]} 4. c4 {[%clk 0:02:55]}  e6 {[%clk 0:02:53]} 5. Nc3 {[%clk 0:02:54]}  Nf6 {[%clk 0:02:52]} 6. a3 {[%clk 0:02:53]}  a6 {[%clk 0:02:51]} 7. dxc5 {[%clk 0:02:52]}  Bxc5 {[%clk 0:02:50]} 8. b4 {[%clk 0:02:51]}  Bd6 {[%clk 0:02:49]} 9. cxd5 {[%clk 0:02:48]}  exd5 {[%clk 0:02:46]} 10. Bb2 {[%clk 0:02:48]}  O-O {[%clk 0:02:44]} 11. Be2 {[%clk 0:02:48]}  Re8 {[%clk 0:02:44]} 12. O-O {[%clk 0:02:47]}  Bc7 {[%clk 0:02:42]} 13. Rc1 {[%clk 0:02:34]}  Qd6 {[%clk 0:02:40]} 14. Na4 {[%clk 0:02:24]}  Ne4 {[%clk 0:02:37]} 15. Nc5 {[%clk 0:02:18]}  Ng5 {[%clk 0:02:33]} 16. g3 {[%clk 0:02:10]}  Nh3+ {[%clk 0:02:31]} 17. Kg2 {[%clk 0:02:05]}  Rb8 {[%clk 0:02:00]} 18. Qc2 {[%clk 0:01:55]}  Bd7 {[%clk 0:01:36]} 19. Rcd1 {[%clk 0:01:38]}  Bb6 {[%clk 0:01:32]} 20. Nd4 {[%clk 0:00:59]}  Qh6 {[%clk 0:01:15]} 21. Nxd7 {[%clk 0:00:51]} 1-0


[Site "https://www.chess.com"]

[Event "Titled Tuesday Blitz August 09 Early 2022"]
[White "Kilic, Eray"]
[Black "Uskov, Artem"]
[WhiteFideId "44517173"]
[BlackFideId "34254854"]
[WhiteElo "1776"]
[BlackElo "2335"]
[Result "0-1"]
[Round "04"]
[TimeControl "180+1"]
[Date "2022.08.09"]
[WhiteClock "0:00:06"]
[BlackClock "0:00:06"]

1. e4 {[%clk 0:03:00]}  c5 {[%clk 0:02:58]} 2. Nf3 {[%clk 0:03:01]}  d6 {[%clk 0:02:58]} 3. d4 {[%clk 0:03:01]}  cxd4 {[%clk 0:02:59]} 4. Nxd4 {[%clk 0:03:02]}  Nf6 {[%clk 0:03:00]} 5. Nc3 {[%clk 0:03:02]}  a6 {[%clk 0:03:00]} 6. Be3 {[%clk 0:03:03]}  Ng4 {[%clk 0:02:58]} 7. Bg5 {[%clk 0:03:01]}  h6 {[%clk 0:02:58]} 8. Bh4 {[%clk 0:03:01]}  g5 {[%clk 0:02:58]} 9. Bg3 {[%clk 0:03:02]}  Bg7 {[%clk 0:02:57]} 10. Be2 {[%clk 0:03:02]}  Ne5 {[%clk 0:02:52]} 11. O-O {[%clk 0:02:59]}  Nbc6 {[%clk 0:02:49]} 12. Nb3 {[%clk 0:02:57]}  Ng6 {[%clk 0:02:44]} 13. Bh5 {[%clk 0:02:54]}  Be6 {[%clk 0:02:40]} 14. Nd5 {[%clk 0:02:53]}  Bxd5 {[%clk 0:02:19]} 15. exd5 {[%clk 0:02:54]}  Nce5 {[%clk 0:02:20]} 16. Nd4 {[%clk 0:02:54]}  Qd7 {[%clk 0:02:16]} 17. Ne6 {[%clk 0:02:34]}  fxe6 {[%clk 0:02:04]} 18. Bxe5 {[%clk 0:02:34]}  Bxe5 {[%clk 0:02:05]} 19. Bxg6+ {[%clk 0:02:34]}  Kd8 {[%clk 0:02:04]} 20. Re1 {[%clk 0:02:34]}  Rf8 {[%clk 0:02:00]} 21. c3 {[%clk 0:02:25]}  Kc7 {[%clk 0:01:51]} 22. Be4 {[%clk 0:02:14]}  Rab8 {[%clk 0:01:31]} 23. Qb3 {[%clk 0:02:08]}  exd5 {[%clk 0:01:30]} 24. Bxd5 {[%clk 0:02:09]}  Qg4 {[%clk 0:01:28]} 25. Re4 {[%clk 0:02:03]}  Rf4 {[%clk 0:01:19]} 26. h3 {[%clk 0:02:02]}  Qf5 {[%clk 0:01:15]} 27. Rae1 {[%clk 0:01:43]}  b5 {[%clk 0:01:05]} 28. c4 {[%clk 0:01:23]}  e6 {[%clk 0:00:54]} 29. Rxf4 {[%clk 0:01:12]}  Qxf4 {[%clk 0:00:51]} 30. g3 {[%clk 0:01:12]}  bxc4 {[%clk 0:00:38]} 31. Qa4 {[%clk 0:00:59]}  Qf6 {[%clk 0:00:07]} 32. Qxc4+ {[%clk 0:00:48]}  Kd8 {[%clk 0:00:07]} 33. Bxe6 {[%clk 0:00:45]}  Rxb2 {[%clk 0:00:07]} 34. Qc8+ {[%clk 0:00:38]}  Ke7 {[%clk 0:00:06]} 35. Qd7+ {[%clk 0:00:38]}  Kf8 {[%clk 0:00:06]} 36. Bf5 {[%clk 0:00:23]}  Qe7 {[%clk 0:00:04]} 37. Qc8+ {[%clk 0:00:22]}  Kg7 {[%clk 0:00:05]} 38. Bc2 {[%clk 0:00:20]}  Qf6 {[%clk 0:00:04]} 39. Qd7+ {[%clk 0:00:20]}  Qf7 {[%clk 0:00:05]} 40. Qc8 {[%clk 0:00:12]}  Bd4 {[%clk 0:00:04]} 41. Rf1 {[%clk 0:00:10]}  Rb5 {[%clk 0:00:03]} 42. Bd3 {[%clk 0:00:09]}  Rc5 {[%clk 0:00:04]} 43. Qb7 {[%clk 0:00:08]}  Be5 {[%clk 0:00:04]} 44. Qg2 {[%clk 0:00:09]}  Rc3 {[%clk 0:00:05]} 45. Be4 {[%clk 0:00:09]}  Bd4 {[%clk 0:00:05]} 46. Bd5 {[%clk 0:00:09]}  Qf6 {[%clk 0:00:05]} 47. Kh1 {[%clk 0:00:08]}  Qe5 {[%clk 0:00:06]} 48. Rb1 {[%clk 0:00:08]}  Kf6 {[%clk 0:00:03]} 49. Bf3 {[%clk 0:00:07]}  Qf5 {[%clk 0:00:03]} 50. Bg4 {[%clk 0:00:07]}  Qxb1+ {[%clk 0:00:04]} 51. Kh2 {[%clk 0:00:07]}  Qc2 {[%clk 0:00:03]} 52. Kg1 {[%clk 0:00:04]}  Qxf2+ {[%clk 0:00:03]} 53. Qxf2+ {[%clk 0:00:05]}  Bxf2+ {[%clk 0:00:04]} 54. Kxf2 {[%clk 0:00:06]}  Rc2+ {[%clk 0:00:05]} 55. Ke3 {[%clk 0:00:06]}  Rxa2 {[%clk 0:00:06]} 0-1


[Site "https://www.chess.com"]

[Event "Titled Tuesday Blitz August 09 Early 2022"]
[White "Kravtsiv, Martyn"]
[Black "Dubov, Daniil"]
[WhiteFideId "14113147"]
[BlackFideId "24126055"]
[WhiteElo "2802"]
[BlackElo "2996"]
[Result "1/2-1/2"]
[Round "04"]
[TimeControl "180+1"]
[Date "2022.08.09"]
[WhiteClock "0:00:38"]
[BlackClock "0:00:22"]

1. e4 {[%clk 0:03:00]}  e5 {[%clk 0:02:58]} 2. Nf3 {[%clk 0:03:00]}  Nc6 {[%clk 0:02:59]} 3. Nc3 {[%clk 0:03:00]}  Nf6 {[%clk 0:02:58]} 4. a4 {[%clk 0:03:00]}  Be7 {[%clk 0:02:48]} 5. Bb5 {[%clk 0:02:57]}  O-O {[%clk 0:02:46]} 6. O-O {[%clk 0:02:56]}  d6 {[%clk 0:02:42]} 7. Bxc6 {[%clk 0:02:55]}  bxc6 {[%clk 0:02:43]} 8. d4 {[%clk 0:02:55]}  exd4 {[%clk 0:02:43]} 9. Nxd4 {[%clk 0:02:56]}  Bd7 {[%clk 0:02:39]} 10. Qf3 {[%clk 0:02:56]}  c5 {[%clk 0:02:29]} 11. Nf5 {[%clk 0:02:55]}  Bxf5 {[%clk 0:02:30]} 12. Qxf5 {[%clk 0:02:55]}  Qc8 {[%clk 0:02:20]} 13. Qxc8 {[%clk 0:02:47]}  Rfxc8 {[%clk 0:02:11]} 14. b3 {[%clk 0:02:38]}  Rab8 {[%clk 0:01:55]} 15. Rb1 {[%clk 0:02:35]}  Nd7 {[%clk 0:01:50]} 16. Nd5 {[%clk 0:02:32]}  Kf8 {[%clk 0:01:50]} 17. Bd2 {[%clk 0:02:27]}  Nf6 {[%clk 0:01:47]} 18. Nxe7 {[%clk 0:02:17]}  Kxe7 {[%clk 0:01:47]} 19. Bc3 {[%clk 0:02:18]}  Kf8 {[%clk 0:01:27]} 20. Rfe1 {[%clk 0:02:03]}  Nd7 {[%clk 0:01:27]} 21. Rbd1 {[%clk 0:02:03]}  f6 {[%clk 0:01:22]} 22. f3 {[%clk 0:01:52]}  Kf7 {[%clk 0:01:21]} 23. Kf2 {[%clk 0:01:51]}  Re8 {[%clk 0:01:19]} 24. h4 {[%clk 0:01:45]}  h5 {[%clk 0:01:06]} 25. Rg1 {[%clk 0:01:40]}  Ne5 {[%clk 0:01:04]} 26. Rd5 {[%clk 0:01:35]}  Rh8 {[%clk 0:01:03]} 27. Ke3 {[%clk 0:01:28]}  Ng6 {[%clk 0:00:53]} 28. g3 {[%clk 0:01:21]}  Ne7 {[%clk 0:00:53]} 29. Rd2 {[%clk 0:01:17]}  Nc6 {[%clk 0:00:52]} 30. Rd5 {[%clk 0:01:09]}  Rbe8 {[%clk 0:00:47]} 31. Kf2 {[%clk 0:01:06]}  Ne7 {[%clk 0:00:42]} 32. Rd2 {[%clk 0:01:06]}  Rb8 {[%clk 0:00:41]} 33. Re1 {[%clk 0:00:55]}  Rhe8 {[%clk 0:00:40]} 34. Ba5 {[%clk 0:00:52]}  Rbc8 {[%clk 0:00:37]} 35. Bc3 {[%clk 0:00:52]}  Nc6 {[%clk 0:00:35]} 36. Rd5 {[%clk 0:00:51]}  Rh8 {[%clk 0:00:35]} 37. Rg1 {[%clk 0:00:45]}  Rb8 {[%clk 0:00:32]} 38. Rgd1 {[%clk 0:00:43]}  Rbe8 {[%clk 0:00:27]} 39. Rg1 {[%clk 0:00:40]}  Rb8 {[%clk 0:00:26]} 40. Rgd1 {[%clk 0:00:39]}  Rbe8 {[%clk 0:00:22]} 41. Rg1 {[%clk 0:00:38]} 1/2-1/2


[Site "https://www.chess.com"]